[Event "December 12 Late 2023"]
[Site "https://www.chess.com"]
[Date "2023.12.12"]
[Round "5"]
[White "Zakarian, David"]
[Black "Rodgers, Jack"]
[Result "1-0"]
[Board "85"]
[TimeControl "180+1"]
[WhiteFideId "13301276"]
[BlackFideId "3220885"]
[WhiteElo "2406"]
[BlackElo "2531"]
[WhiteTeam "ARM"]
[BlackTeam "AUS"]
[WhiteClock "0:00:20"]
[BlackClock "0:00:00"]

1. e4 {[%clk 0:03:00]}  c5 {[%clk 0:02:59]} 2. Nf3 {[%clk 0:03:00]}  g6 {[%clk 0:02:59]} 3. Bc4 {[%clk 0:02:59]}  Bg7 {[%clk 0:02:59]} 4. O-O {[%clk 0:02:59]}  e6 {[%clk 0:02:57]} 5. Re1 {[%clk 0:02:59]}  Ne7 {[%clk 0:02:55]} 6. Bf1 {[%clk 0:02:54]}  O-O {[%clk 0:02:50]} 7. d3 {[%clk 0:02:52]}  Nbc6 {[%clk 0:02:45]} 8. c3 {[%clk 0:02:52]}  d5 {[%clk 0:02:36]} 9. Qe2 {[%clk 0:02:51]}  b6 {[%clk 0:02:31]} 10. Nbd2 {[%clk 0:02:42]}  Ba6 {[%clk 0:02:31]} 11. Qd1 {[%clk 0:02:31]}  Qd7 {[%clk 0:02:18]} 12. Qa4 {[%clk 0:02:26]}  Bb7 {[%clk 0:02:08]} 13. Qc2 {[%clk 0:02:21]}  Rac8 {[%clk 0:02:05]} 14. g3 {[%clk 0:02:16]}  Rfd8 {[%clk 0:01:56]} 15. a3 {[%clk 0:01:49]}  Ba6 {[%clk 0:01:53]} 16. Qa4 {[%clk 0:01:46]}  Bb7 {[%clk 0:01:53]} 17. Rb1 {[%clk 0:01:46]}  a6 {[%clk 0:01:52]} 18. Qc2 {[%clk 0:01:46]}  b5 {[%clk 0:01:51]} 19. Bg2 {[%clk 0:01:44]}  c4 {[%clk 0:01:47]} 20. d4 {[%clk 0:01:39]}  a5 {[%clk 0:01:45]} 21. exd5 {[%clk 0:01:32]}  exd5 {[%clk 0:01:42]} 22. Nf1 {[%clk 0:01:26]}  Re8 {[%clk 0:01:41]} 23. h4 {[%clk 0:01:24]}  h5 {[%clk 0:01:35]} 24. Bf4 {[%clk 0:01:20]}  Nf5 {[%clk 0:01:23]} 25. Qd2 {[%clk 0:01:14]}  Rxe1 {[%clk 0:01:18]} 26. Rxe1 {[%clk 0:01:13]}  Re8 {[%clk 0:01:19]} 27. Bh3 {[%clk 0:01:11]}  Rxe1 {[%clk 0:01:06]} 28. Qxe1 {[%clk 0:01:12]}  Qe6 {[%clk 0:01:05]} 29. Qxe6 {[%clk 0:01:02]}  fxe6 {[%clk 0:01:05]} 30. Ne3 {[%clk 0:01:01]}  b4 {[%clk 0:00:52]} 31. axb4 {[%clk 0:01:00]}  axb4 {[%clk 0:00:53]} 32. Ng5 {[%clk 0:00:54]}  Bc8 {[%clk 0:00:51]} 33. Bxf5 {[%clk 0:00:53]}  gxf5 {[%clk 0:00:49]} 34. Kf1 {[%clk 0:00:51]}  Bf6 {[%clk 0:00:33]} 35. Nf3 {[%clk 0:00:47]}  b3 {[%clk 0:00:27]} 36. Ke2 {[%clk 0:00:46]}  Kf7 {[%clk 0:00:23]} 37. Kd2 {[%clk 0:00:46]}  Be7 {[%clk 0:00:22]} 38. Ng2 {[%clk 0:00:46]}  Bf6 {[%clk 0:00:17]} 39. Bd6 {[%clk 0:00:42]}  Ke8 {[%clk 0:00:14]} 40. Nf4 {[%clk 0:00:41]}  Kd7 {[%clk 0:00:15]} 41. Be5 {[%clk 0:00:32]}  Bxe5 {[%clk 0:00:07]} 42. Nxe5+ {[%clk 0:00:31]}  Nxe5 {[%clk 0:00:07]} 43. dxe5 {[%clk 0:00:32]}  Ke7 {[%clk 0:00:02]} 44. Nxh5 {[%clk 0:00:32]}  Kf7 {[%clk 0:00:03]} 45. Nf4 {[%clk 0:00:30]}  Kg7 {[%clk 0:00:03]} 46. Ke3 {[%clk 0:00:30]}  Bd7 {[%clk 0:00:02]} 47. Kd4 {[%clk 0:00:29]}  Bc8 {[%clk 0:00:02]} 48. f3 {[%clk 0:00:27]}  Kf7 {[%clk 0:00:01]} 49. g4 {[%clk 0:00:28]}  fxg4 {[%clk 0:00:02]} 50. fxg4 {[%clk 0:00:28]}  Kg7 {[%clk 0:00:03]} 51. g5 {[%clk 0:00:27]}  Kf7 {[%clk 0:00:03]} 52. h5 {[%clk 0:00:28]}  Kg7 {[%clk 0:00:04]} 53. Kc5 {[%clk 0:00:26]}  Kf7 {[%clk 0:00:05]} 54. Ne2 {[%clk 0:00:24]}  Bd7 {[%clk 0:00:02]} 55. Kd6 {[%clk 0:00:22]}  Be8 {[%clk 0:00:02]} 56. Nd4 {[%clk 0:00:23]}  Kg7 {[%clk 0:00:02]} 57. g6 {[%clk 0:00:22]}  Kh6 {[%clk 0:00:03]} 58. Kxe6 {[%clk 0:00:20]}  Kxh5 {[%clk 0:00:00]} 59. g7 {[%clk 0:00:20]} 1-0

[Event "December 12 Late 2023"]
[Site "https://www.chess.com"]
[Date "2023.12.12"]
[Round "5"]
[White "Rogov, Matfey"]
[Black "Adamczyk, Zuzanna"]
[Result "0-1"]
[Board "88"]
[TimeControl "180+1"]
[WhiteFideId "44191308"]
[BlackFideId "1187570"]
[WhiteElo "2523"]
[BlackElo "2352"]
[WhiteTeam "RUS"]
[BlackTeam "POL"]
[WhiteClock "0:00:02"]
[BlackClock "0:00:16"]

1. e4 {[%clk 0:03:00]}  d6 {[%clk 0:02:59]} 2. Nc3 {[%clk 0:03:00]}  Nf6 {[%clk 0:03:00]} 3. f4 {[%clk 0:02:58]}  a6 {[%clk 0:02:58]} 4. a4 {[%clk 0:02:53]}  e5 {[%clk 0:02:53]} 5. Nf3 {[%clk 0:02:51]}  Nc6 {[%clk 0:02:49]} 6. Bc4 {[%clk 0:02:50]}  Bg4 {[%clk 0:02:26]} 7. O-O {[%clk 0:02:46]}  exf4 {[%clk 0:02:09]} 8. d4 {[%clk 0:02:33]}  Be7 {[%clk 0:02:08]} 9. Bxf4 {[%clk 0:02:32]}  O-O {[%clk 0:02:06]} 10. Qd3 {[%clk 0:02:26]}  Nb4 {[%clk 0:01:54]} 11. Qd2 {[%clk 0:02:16]}  d5 {[%clk 0:01:33]} 12. exd5 {[%clk 0:02:12]}  Nfxd5 {[%clk 0:01:18]} 13. Ne5 {[%clk 0:02:10]}  Be6 {[%clk 0:01:15]} 14. Ne2 {[%clk 0:01:57]}  Nxf4 {[%clk 0:01:10]} 15. Rxf4 {[%clk 0:01:44]}  Bxc4 {[%clk 0:01:01]} 16. Nxc4 {[%clk 0:01:45]}  Bg5 {[%clk 0:00:57]} 17. Qxb4 {[%clk 0:01:36]}  Bxf4 {[%clk 0:00:57]} 18. Rf1 {[%clk 0:01:34]}  Bd6 {[%clk 0:00:57]} 19. Qxb7 {[%clk 0:01:33]}  Qe7 {[%clk 0:00:50]} 20. Qf3 {[%clk 0:01:27]}  Rae8 {[%clk 0:00:44]} 21. Nc3 {[%clk 0:01:27]}  Qh4 {[%clk 0:00:40]} 22. Nxd6 {[%clk 0:01:06]}  Qxd4+ {[%clk 0:00:40]} 23. Kh1 {[%clk 0:01:07]}  Qxd6 {[%clk 0:00:41]} 24. h3 {[%clk 0:01:06]}  h6 {[%clk 0:00:39]} 25. a5 {[%clk 0:01:03]}  Qb4 {[%clk 0:00:35]} 26. Nd5 {[%clk 0:00:42]}  Qxa5 {[%clk 0:00:35]} 27. c4 {[%clk 0:00:42]}  c6 {[%clk 0:00:33]} 28. b4 {[%clk 0:00:39]}  Qa2 {[%clk 0:00:26]} 29. Nb6 {[%clk 0:00:29]}  Qe2 {[%clk 0:00:24]} 30. Nd7 {[%clk 0:00:22]}  Qxf3 {[%clk 0:00:22]} 31. gxf3 {[%clk 0:00:23]}  Rb8 {[%clk 0:00:19]} 32. Nxb8 {[%clk 0:00:19]}  Rxb8 {[%clk 0:00:19]} 33. Rb1 {[%clk 0:00:18]}  a5 {[%clk 0:00:18]} 34. b5 {[%clk 0:00:15]}  cxb5 {[%clk 0:00:14]} 35. cxb5 {[%clk 0:00:10]}  Rb6 {[%clk 0:00:14]} 36. Kg2 {[%clk 0:00:09]}  Kh7 {[%clk 0:00:15]} 37. Kg3 {[%clk 0:00:10]}  Kg6 {[%clk 0:00:15]} 38. h4 {[%clk 0:00:10]}  Kf5 {[%clk 0:00:14]} 39. Rb2 {[%clk 0:00:08]}  h5 {[%clk 0:00:15]} 40. Rb1 {[%clk 0:00:07]}  g6 {[%clk 0:00:15]} 41. Rb2 {[%clk 0:00:08]}  Ke5 {[%clk 0:00:15]} 42. Rb1 {[%clk 0:00:06]}  Kd5 {[%clk 0:00:15]} 43. Kf4 {[%clk 0:00:07]}  Kc5 {[%clk 0:00:15]} 44. Kg5 {[%clk 0:00:06]}  Rxb5 {[%clk 0:00:15]} 45. Rc1+ {[%clk 0:00:07]}  Kb4+ {[%clk 0:00:15]} 46. Kh6 {[%clk 0:00:04]}  Rf5 {[%clk 0:00:15]} 47. Rf1 {[%clk 0:00:04]}  Rf4 {[%clk 0:00:15]} 48. Kg5 {[%clk 0:00:04]}  Rf5+ {[%clk 0:00:15]} 49. Kh6 {[%clk 0:00:04]}  a4 {[%clk 0:00:16]} 50. Kg7 {[%clk 0:00:03]}  a3 {[%clk 0:00:16]} 51. Rb1+ {[%clk 0:00:04]}  Ka4 {[%clk 0:00:16]} 52. Rb7 {[%clk 0:00:05]}  a2 {[%clk 0:00:16]} 53. Ra7+ {[%clk 0:00:02]}  Ra5 {[%clk 0:00:16]} 0-1

[Event "December 12 Late 2023"]
[Site "https://www.chess.com"]
[Date "2023.12.12"]
[Round "5"]
[White "Marcziter, Dmitrii"]
[Black "Tikhonov, Viacheslav"]
[Result "1-0"]
[Board "90"]
[TimeControl "180+1"]
[WhiteFideId "13900765"]
[BlackFideId "44196407"]
[WhiteElo "2327"]
[BlackElo "2522"]
[WhiteTeam "GER"]
[BlackTeam "RUS"]
[WhiteClock "0:00:49"]
[BlackClock "0:00:00"]

1. d4 {[%clk 0:03:00]}  Nf6 {[%clk 0:02:59]} 2. Nf3 {[%clk 0:03:00]}  g6 {[%clk 0:02:59]} 3. c4 {[%clk 0:03:00]}  Bg7 {[%clk 0:02:59]} 4. g3 {[%clk 0:03:00]}  O-O {[%clk 0:02:59]} 5. Bg2 {[%clk 0:02:59]}  c6 {[%clk 0:03:00]} 6. Nc3 {[%clk 0:02:59]}  d5 {[%clk 0:03:00]} 7. cxd5 {[%clk 0:02:59]}  cxd5 {[%clk 0:03:01]} 8. Ne5 {[%clk 0:02:59]}  Ng4 {[%clk 0:03:01]} 9. f4 {[%clk 0:02:55]}  Nxe5 {[%clk 0:02:55]} 10. fxe5 {[%clk 0:02:55]}  e6 {[%clk 0:02:50]} 11. O-O {[%clk 0:02:53]}  Nc6 {[%clk 0:02:47]} 12. Be3 {[%clk 0:02:47]}  f6 {[%clk 0:02:39]} 13. exf6 {[%clk 0:02:45]}  Bxf6 {[%clk 0:02:40]} 14. Qd2 {[%clk 0:02:44]}  Bd7 {[%clk 0:02:34]} 15. Bf2 {[%clk 0:02:38]}  Qb6 {[%clk 0:02:15]} 16. Rad1 {[%clk 0:02:34]}  Bg7 {[%clk 0:02:07]} 17. Kh1 {[%clk 0:02:28]}  Ne7 {[%clk 0:01:50]} 18. e4 {[%clk 0:02:18]}  Bc6 {[%clk 0:01:27]} 19. e5 {[%clk 0:02:15]}  Nf5 {[%clk 0:01:21]} 20. g4 {[%clk 0:02:13]}  Bh6 {[%clk 0:01:20]} 21. Qe2 {[%clk 0:02:01]}  Ne7 {[%clk 0:01:15]} 22. Bh4 {[%clk 0:01:55]}  Qc7 {[%clk 0:01:11]} 23. Bf6 {[%clk 0:01:49]}  Rf7 {[%clk 0:00:45]} 24. Bh3 {[%clk 0:01:45]}  Bg7 {[%clk 0:00:44]} 25. Bxg7 {[%clk 0:01:36]}  Rxg7 {[%clk 0:00:40]} 26. Rf6 {[%clk 0:01:33]}  Rf8 {[%clk 0:00:22]} 27. Rdf1 {[%clk 0:01:28]}  Rgf7 {[%clk 0:00:18]} 28. Rxe6 {[%clk 0:01:20]}  Kg7 {[%clk 0:00:13]} 29. Rxf7+ {[%clk 0:01:09]}  Rxf7 {[%clk 0:00:13]} 30. Rd6 {[%clk 0:01:02]}  Nc8 {[%clk 0:00:04]} 31. Re6 {[%clk 0:00:54]}  Bd7 {[%clk 0:00:02]} 32. Rf6 {[%clk 0:00:49]}  Rxf6 {[%clk 0:00:02]} 33. exf6+ {[%clk 0:00:49]}  Kxf6 {[%clk 0:00:00]} 34. Nxd5+ {[%clk 0:00:49]} 1-0

[Event "December 12 Late 2023"]
[Site "https://www.chess.com"]
[Date "2023.12.12"]
[Round "5"]
[White "Leenhouts, Koen"]
[Black "Mejia, Cherry Ann"]
[Result "1-0"]
[Board "91"]
[TimeControl "180+1"]
[WhiteFideId "1008439"]
[BlackFideId "5206880"]
[WhiteElo "2521"]
[BlackElo "2287"]
[WhiteTeam "NED"]
[BlackTeam "PHI"]
[WhiteClock "0:00:09"]
[BlackClock "0:00:00"]

1. d4 {[%clk 0:03:00]}  d5 {[%clk 0:02:58]} 2. Nf3 {[%clk 0:02:59]}  Nf6 {[%clk 0:02:57]} 3. Bf4 {[%clk 0:02:59]}  c5 {[%clk 0:02:57]} 4. e3 {[%clk 0:02:58]}  Nc6 {[%clk 0:02:55]} 5. c3 {[%clk 0:02:55]}  Qb6 {[%clk 0:02:55]} 6. Qb3 {[%clk 0:02:45]}  c4 {[%clk 0:02:55]} 7. Qc2 {[%clk 0:02:45]}  Bf5 {[%clk 0:02:55]} 8. Qc1 {[%clk 0:02:43]}  e6 {[%clk 0:02:54]} 9. Be2 {[%clk 0:02:40]}  h6 {[%clk 0:02:55]} 10. h3 {[%clk 0:02:38]}  Be7 {[%clk 0:02:55]} 11. O-O {[%clk 0:02:31]}  O-O {[%clk 0:02:55]} 12. Nbd2 {[%clk 0:02:26]}  Rfc8 {[%clk 0:02:55]} 13. b3 {[%clk 0:02:22]}  cxb3 {[%clk 0:02:46]} 14. axb3 {[%clk 0:02:21]}  Nb4 {[%clk 0:02:00]} 15. Qb2 {[%clk 0:02:16]}  Nd3 {[%clk 0:01:55]} 16. Bxd3 {[%clk 0:02:13]}  Bxd3 {[%clk 0:01:56]} 17. Rfc1 {[%clk 0:02:11]}  a5 {[%clk 0:01:52]} 18. Ne5 {[%clk 0:02:08]}  Bf5 {[%clk 0:01:48]} 19. Bh2 {[%clk 0:01:50]}  a4 {[%clk 0:01:21]} 20. b4 {[%clk 0:01:48]}  Qa6 {[%clk 0:01:13]} 21. Ra3 {[%clk 0:01:39]}  b5 {[%clk 0:01:13]} 22. Nb3 {[%clk 0:01:33]}  Ne4 {[%clk 0:01:05]} 23. Nc5 {[%clk 0:01:30]}  Qa7 {[%clk 0:00:37]} 24. f3 {[%clk 0:01:21]}  Nd6 {[%clk 0:00:36]} 25. g4 {[%clk 0:01:11]}  Bh7 {[%clk 0:00:34]} 26. Raa1 {[%clk 0:01:05]}  f6 {[%clk 0:00:19]} 27. Ned3 {[%clk 0:00:50]}  Nc4 {[%clk 0:00:19]} 28. Qe2 {[%clk 0:00:47]}  Rc6 {[%clk 0:00:18]} 29. Nf4 {[%clk 0:00:42]}  Bxc5 {[%clk 0:00:14]} 30. bxc5 {[%clk 0:00:39]}  Qd7 {[%clk 0:00:14]} 31. Nd3 {[%clk 0:00:30]}  Bxd3 {[%clk 0:00:09]} 32. Qxd3 {[%clk 0:00:31]}  e5 {[%clk 0:00:09]} 33. Rcb1 {[%clk 0:00:30]}  Rcc8 {[%clk 0:00:03]} 34. Kg2 {[%clk 0:00:28]}  Re8 {[%clk 0:00:01]} 35. Bg1 {[%clk 0:00:27]}  e4 {[%clk 0:00:02]} 36. fxe4 {[%clk 0:00:25]}  Rxe4 {[%clk 0:00:03]} 37. Rf1 {[%clk 0:00:22]}  Rae8 {[%clk 0:00:03]} 38. Rf3 {[%clk 0:00:21]}  a3 {[%clk 0:00:02]} 39. Bf2 {[%clk 0:00:21]}  Qa7 {[%clk 0:00:02]} 40. Rf5 {[%clk 0:00:16]}  Qa4 {[%clk 0:00:02]} 41. Rxd5 {[%clk 0:00:15]}  Nxe3+ {[%clk 0:00:03]} 42. Bxe3 {[%clk 0:00:15]}  Rxe3 {[%clk 0:00:03]} 43. Qg6 {[%clk 0:00:13]}  Re2+ {[%clk 0:00:03]} 44. Kg3 {[%clk 0:00:14]}  Qc2 {[%clk 0:00:03]} 45. Qxc2 {[%clk 0:00:13]}  Rxc2 {[%clk 0:00:04]} 46. Rxa3 {[%clk 0:00:12]}  Re3+ {[%clk 0:00:04]} 47. Kf4 {[%clk 0:00:11]}  Rexc3 {[%clk 0:00:04]} 48. Rxc3 {[%clk 0:00:11]}  Rxc3 {[%clk 0:00:05]} 49. Rd8+ {[%clk 0:00:09]}  Kf7 {[%clk 0:00:06]} 50. Rb8 {[%clk 0:00:10]}  Rc4 {[%clk 0:00:03]} 51. Ke4 {[%clk 0:00:09]}  g6 {[%clk 0:00:04]} 52. Rxb5 {[%clk 0:00:07]}  f5+ {[%clk 0:00:04]} 53. gxf5 {[%clk 0:00:08]}  gxf5+ {[%clk 0:00:05]} 54. Ke5 {[%clk 0:00:09]}  f4 {[%clk 0:00:05]} 55. Rb7+ {[%clk 0:00:09]}  Kg6 {[%clk 0:00:05]} 56. Rb6+ {[%clk 0:00:07]}  Kh5 {[%clk 0:00:05]} 57. Rf6 {[%clk 0:00:07]}  Rc3 {[%clk 0:00:04]} 58. Rf5+ {[%clk 0:00:07]}  Kg6 {[%clk 0:00:04]} 59. Rxf4 {[%clk 0:00:08]}  Rxh3 {[%clk 0:00:04]} 60. c6 {[%clk 0:00:07]}  Rc3 {[%clk 0:00:03]} 61. Kd6 {[%clk 0:00:07]}  h5 {[%clk 0:00:03]} 62. Rf8 {[%clk 0:00:07]}  h4 {[%clk 0:00:03]} 63. d5 {[%clk 0:00:08]}  h3 {[%clk 0:00:03]} 64. Rh8 {[%clk 0:00:08]}  Kg5 {[%clk 0:00:03]} 65. c7 {[%clk 0:00:08]}  Kg4 {[%clk 0:00:04]} 66. Kd7 {[%clk 0:00:08]}  Rc5 {[%clk 0:00:01]} 67. d6 {[%clk 0:00:08]}  Kg3 {[%clk 0:00:02]} 68. Rxh3+ {[%clk 0:00:07]}  Kxh3 {[%clk 0:00:02]} 69. c8=Q {[%clk 0:00:08]}  Rxc8 {[%clk 0:00:00]} 70. Kxc8 {[%clk 0:00:09]} 1-0

[Event "December 12 Late 2023"]
[Site "https://www.chess.com"]
[Date "2023.12.12"]
[Round "5"]
[White "Awoki, Daniel Teidi"]
[Black "Lin, Bryan Enming"]
[Result "1-0"]
[Board "93"]
[TimeControl "180+1"]
[WhiteFideId "2100827"]
[BlackFideId "30987121"]
[WhiteElo "2259"]
[BlackElo "2518"]
[WhiteTeam "BRA"]
[BlackTeam "USA"]
[WhiteClock "0:00:11"]
[BlackClock "0:01:42"]

1. e4 {[%clk 0:03:00]}  c5 {[%clk 0:02:59]} 2. Nf3 {[%clk 0:03:00]}  g6 {[%clk 0:02:58]} 3. d4 {[%clk 0:03:01]}  cxd4 {[%clk 0:02:59]} 4. Nxd4 {[%clk 0:03:02]}  Nc6 {[%clk 0:02:59]} 5. c4 {[%clk 0:03:02]}  Nf6 {[%clk 0:02:59]} 6. Nc3 {[%clk 0:03:02]}  d6 {[%clk 0:03:00]} 7. Be2 {[%clk 0:03:01]}  Nxd4 {[%clk 0:03:00]} 8. Qxd4 {[%clk 0:03:01]}  Bg7 {[%clk 0:03:00]} 9. Qe3 {[%clk 0:03:00]}  O-O {[%clk 0:02:58]} 10. O-O {[%clk 0:03:01]}  Be6 {[%clk 0:02:58]} 11. Rb1 {[%clk 0:02:54]}  Nd7 {[%clk 0:02:50]} 12. b3 {[%clk 0:02:50]}  Qa5 {[%clk 0:02:47]} 13. Bd2 {[%clk 0:02:43]}  Qc5 {[%clk 0:02:43]} 14. Qxc5 {[%clk 0:02:22]}  Nxc5 {[%clk 0:02:43]} 15. f3 {[%clk 0:02:22]}  a5 {[%clk 0:02:40]} 16. Nd5 {[%clk 0:02:16]}  Bxd5 {[%clk 0:02:40]} 17. cxd5 {[%clk 0:02:14]}  Bd4+ {[%clk 0:02:37]} 18. Kh1 {[%clk 0:02:14]}  Rfc8 {[%clk 0:02:37]} 19. Rfc1 {[%clk 0:02:08]}  a4 {[%clk 0:02:36]} 20. b4 {[%clk 0:02:06]}  Nd7 {[%clk 0:02:36]} 21. Bb5 {[%clk 0:02:01]}  Nb6 {[%clk 0:02:31]} 22. g3 {[%clk 0:01:52]}  a3 {[%clk 0:02:31]} 23. Kg2 {[%clk 0:01:43]}  Bb2 {[%clk 0:02:30]} 24. Rxc8+ {[%clk 0:01:10]}  Rxc8 {[%clk 0:02:31]} 25. Be3 {[%clk 0:01:10]}  Rc2+ {[%clk 0:02:30]} 26. Kf1 {[%clk 0:01:06]}  Nc4 {[%clk 0:02:29]} 27. Bxc4 {[%clk 0:01:04]}  Rxc4 {[%clk 0:02:30]} 28. Bd2 {[%clk 0:01:03]}  Rc2 {[%clk 0:02:26]} 29. Ke1 {[%clk 0:00:58]}  f5 {[%clk 0:02:21]} 30. Kd1 {[%clk 0:00:57]}  Rc4 {[%clk 0:02:21]} 31. exf5 {[%clk 0:00:54]}  gxf5 {[%clk 0:02:22]} 32. Ke2 {[%clk 0:00:53]}  Rd4 {[%clk 0:02:21]} 33. Bg5 {[%clk 0:00:47]}  Rxd5 {[%clk 0:02:21]} 34. Rd1 {[%clk 0:00:44]}  Re5+ {[%clk 0:02:18]} 35. Kd3 {[%clk 0:00:42]}  Kf7 {[%clk 0:02:14]} 36. Bf4 {[%clk 0:00:36]}  Rd5+ {[%clk 0:02:14]} 37. Kc2 {[%clk 0:00:36]}  Rb5 {[%clk 0:02:14]} 38. Kb3 {[%clk 0:00:36]}  e5 {[%clk 0:02:09]} 39. Be3 {[%clk 0:00:33]}  Ke6 {[%clk 0:02:08]} 40. Bc1 {[%clk 0:00:27]}  Bd4 {[%clk 0:02:05]} 41. Bxa3 {[%clk 0:00:23]}  Rd5 {[%clk 0:02:03]} 42. Bc1 {[%clk 0:00:17]}  Bg1 {[%clk 0:02:00]} 43. Rxd5 {[%clk 0:00:16]}  Kxd5 {[%clk 0:02:00]} 44. h3 {[%clk 0:00:16]}  e4 {[%clk 0:01:58]} 45. fxe4+ {[%clk 0:00:16]}  Kxe4 {[%clk 0:01:59]} 46. a4 {[%clk 0:00:15]}  Kf3 {[%clk 0:01:59]} 47. Bf4 {[%clk 0:00:15]}  Be3 {[%clk 0:01:58]} 48. Bxd6 {[%clk 0:00:15]}  Bf2 {[%clk 0:01:58]} 49. a5 {[%clk 0:00:14]}  Bxg3 {[%clk 0:01:57]} 50. Bxg3 {[%clk 0:00:14]}  Kxg3 {[%clk 0:01:58]} 51. b5 {[%clk 0:00:15]}  f4 {[%clk 0:01:58]} 52. a6 {[%clk 0:00:15]}  bxa6 {[%clk 0:01:59]} 53. b6 {[%clk 0:00:16]}  f3 {[%clk 0:02:00]} 54. b7 {[%clk 0:00:17]}  f2 {[%clk 0:02:01]} 55. b8=Q+ {[%clk 0:00:17]}  Kxh3 {[%clk 0:01:52]} 56. Qf4 {[%clk 0:00:17]}  Kg2 {[%clk 0:01:52]} 57. Qg4+ {[%clk 0:00:18]}  Kh2 {[%clk 0:01:52]} 58. Qf3 {[%clk 0:00:18]}  Kg1 {[%clk 0:01:52]} 59. Qg3+ {[%clk 0:00:18]}  Kf1 {[%clk 0:01:51]} 60. Kc3 {[%clk 0:00:18]}  Ke2 {[%clk 0:01:51]} 61. Qg2 {[%clk 0:00:18]}  a5 {[%clk 0:01:49]} 62. Qe4+ {[%clk 0:00:13]}  Kd1 {[%clk 0:01:43]} 63. Qf3+ {[%clk 0:00:12]}  Ke1 {[%clk 0:01:44]} 64. Qe3+ {[%clk 0:00:12]}  Kf1 {[%clk 0:01:44]} 65. Kd2 {[%clk 0:00:11]}  Kg2 {[%clk 0:01:44]} 66. Qg5+ {[%clk 0:00:11]}  Kf3 {[%clk 0:01:44]} 67. Qf5+ {[%clk 0:00:10]}  Kg2 {[%clk 0:01:44]} 68. Ke2 {[%clk 0:00:11]}  Kh1 {[%clk 0:01:42]} 69. Qxf2 {[%clk 0:00:11]} 1-0

[Event "December 12 Late 2023"]
[Site "https://www.chess.com"]
[Date "2023.12.12"]
[Round "5"]
[White "Ismayil, Malak"]
[Black "Burke, Paul"]
[Result "1-0"]
[Board "94"]
[TimeControl "180+1"]
[WhiteFideId "13412604"]
[BlackFideId "2605767"]
[WhiteElo "2518"]
[BlackElo "1852"]
[WhiteTeam "AZE"]
[BlackTeam "CAN"]
[WhiteClock "0:01:07"]
[BlackClock "0:00:00"]

1. e4 {[%clk 0:02:40]}  e5 {[%clk 0:02:59]} 2. Nf3 {[%clk 0:02:40]}  Nc6 {[%clk 0:02:59]} 3. Bc4 {[%clk 0:02:39]}  Be7 {[%clk 0:02:59]} 4. O-O {[%clk 0:02:39]}  Nf6 {[%clk 0:02:57]} 5. d3 {[%clk 0:02:39]}  O-O {[%clk 0:02:57]} 6. Nc3 {[%clk 0:02:39]}  d6 {[%clk 0:02:57]} 7. h3 {[%clk 0:02:40]}  Be6 {[%clk 0:02:57]} 8. Bb3 {[%clk 0:02:40]}  Bxb3 {[%clk 0:02:56]} 9. axb3 {[%clk 0:02:41]}  Nd4 {[%clk 0:02:57]} 10. Nxd4 {[%clk 0:02:40]}  exd4 {[%clk 0:02:56]} 11. Ne2 {[%clk 0:02:41]}  c5 {[%clk 0:02:56]} 12. f4 {[%clk 0:02:41]}  b5 {[%clk 0:02:42]} 13. Ng3 {[%clk 0:02:41]}  a5 {[%clk 0:02:31]} 14. Qf3 {[%clk 0:02:38]}  d5 {[%clk 0:02:20]} 15. e5 {[%clk 0:02:37]}  Ne8 {[%clk 0:02:17]} 16. Nf5 {[%clk 0:02:37]}  Qd7 {[%clk 0:02:01]} 17. Qg4 {[%clk 0:02:36]}  Kh8 {[%clk 0:01:56]} 18. Bd2 {[%clk 0:02:30]}  g6 {[%clk 0:01:53]} 19. Nxe7 {[%clk 0:02:24]}  Qxe7 {[%clk 0:01:50]} 20. f5 {[%clk 0:02:08]}  Qxe5 {[%clk 0:01:21]} 21. Rae1 {[%clk 0:02:07]}  Qg7 {[%clk 0:01:04]} 22. Qf3 {[%clk 0:02:02]}  Nf6 {[%clk 0:00:59]} 23. Bg5 {[%clk 0:01:57]}  h6 {[%clk 0:00:38]} 24. Bf4 {[%clk 0:01:19]}  g5 {[%clk 0:00:31]} 25. Bd6 {[%clk 0:01:19]}  Rfe8 {[%clk 0:00:22]} 26. Bxc5 {[%clk 0:01:18]}  Rxe1 {[%clk 0:00:19]} 27. Rxe1 {[%clk 0:01:19]}  Re8 {[%clk 0:00:12]} 28. Rxe8+ {[%clk 0:01:13]}  Nxe8 {[%clk 0:00:11]} 29. Qf2 {[%clk 0:01:14]}  f6 {[%clk 0:00:08]} 30. Qxd4 {[%clk 0:01:12]}  Qc7 {[%clk 0:00:00]} 31. Qxd5 {[%clk 0:01:07]} 1-0

[Event "December 12 Late 2023"]
[Site "https://www.chess.com"]
[Date "2023.12.12"]
[Round "5"]
[White "Bardyk, Artem"]
[Black "Serban, Cristian-Stefan"]
[Result "1-0"]
[Board "96"]
[TimeControl "180+1"]
[WhiteFideId "34349979"]
[BlackFideId "1241443"]
[WhiteElo "2719"]
[BlackElo "2461"]
[WhiteTeam "RUS"]
[BlackTeam "ROU"]
[WhiteClock "0:02:10"]
[BlackClock "0:00:41"]

1. e4 {[%clk 0:03:00]}  e5 {[%clk 0:02:57]} 2. d4 {[%clk 0:03:00]}  exd4 {[%clk 0:02:57]} 3. Qxd4 {[%clk 0:03:01]}  Nc6 {[%clk 0:02:56]} 4. Qd3 {[%clk 0:03:01]}  Nf6 {[%clk 0:02:56]} 5. Nc3 {[%clk 0:03:02]}  Bb4 {[%clk 0:02:57]} 6. Bd2 {[%clk 0:03:02]}  O-O {[%clk 0:02:56]} 7. Nge2 {[%clk 0:03:03]}  Re8 {[%clk 0:02:54]} 8. O-O-O {[%clk 0:03:03]}  d6 {[%clk 0:02:50]} 9. Bg5 {[%clk 0:03:03]}  h6 {[%clk 0:02:43]} 10. Bxf6 {[%clk 0:03:04]}  Qxf6 {[%clk 0:02:42]} 11. Nd5 {[%clk 0:03:04]}  Qd8 {[%clk 0:02:29]} 12. Nxb4 {[%clk 0:03:04]}  Nxb4 {[%clk 0:02:30]} 13. Qd2 {[%clk 0:03:05]}  Rxe4 {[%clk 0:02:07]} 14. f3 {[%clk 0:02:47]}  Nxa2+ {[%clk 0:02:05]} 15. Kb1 {[%clk 0:02:47]}  Ra4 {[%clk 0:02:06]} 16. b3 {[%clk 0:02:44]}  Ra6 {[%clk 0:01:55]} 17. Nd4 {[%clk 0:02:40]}  c5 {[%clk 0:01:30]} 18. Bxa6 {[%clk 0:02:38]}  Nb4 {[%clk 0:01:30]} 19. Be2 {[%clk 0:02:31]}  Qa5 {[%clk 0:01:29]} 20. c3 {[%clk 0:02:32]}  Nd5 {[%clk 0:01:15]} 21. Nb5 {[%clk 0:02:24]}  Bf5+ {[%clk 0:01:15]} 22. Kb2 {[%clk 0:02:24]}  Re8 {[%clk 0:01:08]} 23. Bc4 {[%clk 0:02:19]}  Ne3 {[%clk 0:00:46]} 24. Bxf7+ {[%clk 0:02:16]}  Kxf7 {[%clk 0:00:41]} 25. Nxd6+ {[%clk 0:02:15]}  Kg8 {[%clk 0:00:41]} 26. Nxe8 {[%clk 0:02:10]}  Nc2 {[%clk 0:00:41]} 1-0